bitfinex/quotes_BTCUSD_20250902
["timestamp","ask_amount","ask_price","bid_price","bid_amount"]
[1756788866029,0.78164279,110410.0,110400.0,0.00104709]
[1756788866332,0.78164279,110410.0,110400.0,0.00629709]
[1756788866333,0.4651679,110410.0,110400.0,0.00629709]
[1756788866514,0.74919279,110410.0,110400.0,0.00629709]
[1756788870366,0.28402489,110410.0,110400.0,0.18745651]
[1756788870594,0.06,110430.0,110420.0,0.1811266]
[1756788870819,0.34402489,110430.0,110420.0,0.09716599]
[1756788871044,0.34402489,110430.0,110420.0,0.00525]
[1756788871045,0.81117998,110430.0,110420.0,0.00525]
[1756788871262,0.82121759,110430.0,110410.0,0.18426292]
[1756788871483,1.03320127,110420.0,110410.0,0.18114301]
[1756788871695,0.56804978,110420.0,110410.0,0.18639301]
[1756788872135,0.74917638,110420.0,110410.0,0.33823301]
[1756788872485,0.56804978,110420.0,110410.0,0.33823301]
[1756788872889,0.74917638,110420.0,110410.0,0.33823301]
[1756788874101,0.75017638,110420.0,110410.0,0.33823301]
[1756788874491,0.74917638,110420.0,110410.0,0.33823301]
[1756788874692,0.74917638,110420.0,110410.0,0.18739301]
[1756788874843,0.74917638,110420.0,110410.0,0.33923301]
[1756788875059,0.75119638,110420.0,110410.0,0.33923301]
[1756788875462,0.75119638,110420.0,110410.0,0.15908]
[1756788875463,0.74917638,110420.0,110410.0,0.15908]
[1756788875705,0.74917638,110420.0,110410.0,0.34022301]
[1756788876524,0.75130638,110420.0,110410.0,0.34022301]
[1756788878423,1.19039127,110420.0,110410.0,0.002]
[1756788881255,1.53039127,110420.0,110410.0,0.002]
[1756788881457,1.92586037,110420.0,110410.0,0.002]
[1756788881633,1.66922548,110420.0,110410.0,0.002]
[1756788882318,1.66922548,110420.0,110410.0,0.001]
[1756788882903,0.18114301,110410.0,110400.0,4.709e-05]
[1756788883105,1.18525768,110410.0,110400.0,4.709e-05]
[1756788883305,1.53052768,110410.0,110400.0,4.709e-05]
[1756788883510,1.66920277,110410.0,110400.0,4.709e-05]
[1756788885164,1.51716277,110410.0,110400.0,4.709e-05]
[1756788885318,1.66924277,110410.0,110400.0,4.709e-05]
[1756788890224,1.14122189,110410.0,110400.0,4.709e-05]
[1756788890568,0.4924009,110410.0,110400.0,0.18644651]
[1756788890769,0.77642579,110410.0,110400.0,0.18644651]
[1756788891146,0.77642579,110410.0,110400.0,0.00528709]
[1756788891725,0.77642579,110410.0,110400.0,0.00628709]
[1756788892563,0.92838579,110410.0,110400.0,0.00628709]
[1756788893187,0.92838579,110410.0,110400.0,0.00828709]
[1756788894852,0.92838579,110410.0,110400.0,0.01055158]
[1756788895517,0.92838579,110410.0,110400.0,0.00828709]
[1756788896228,0.92838579,110410.0,110400.0,0.01055158]
[1756788897502,0.64440841,110410.0,110400.0,0.01055158]
[1756788897796,0.64440841,110410.0,110400.0,0.00828709]
[1756788899100,0.64653841,110410.0,110400.0,0.00828709]
[1756788900396,0.64440841,110410.0,110400.0,0.00828709]
[1756788900941,0.64653841,110410.0,110400.0,0.00304709]
[1756788901154,0.64653841,110410.0,110400.0,0.00828709]
[1756788901370,0.64653841,110410.0,110400.0,0.01055158]
[1756788901651,0.64440841,110410.0,110400.0,0.00828709]
[1756788902749,0.027233,110410.0,110400.0,0.191711]
[1756788902972,0.20837601,110410.0,110400.0,0.34124651]
[1756788903178,0.49244841,110410.0,110400.0,0.34124651]
[1756788904873,0.49244841,110410.0,110400.0,0.18944651]
[1756788905605,0.2840724,110410.0,110400.0,0.18944651]
[1756788908001,0.027226,110420.0,110410.0,0.18114301]
[1756788908187,0.2840724,110420.0,110410.0,0.34044729]
[1756788908390,0.2840724,110420.0,110410.0,0.33818301]
[1756788908789,0.2840724,110420.0,110410.0,0.430099]
[1756788910088,0.43016579,110430.0,110420.0,0.1811266]
[1756788910315,0.71632819,110430.0,110420.0,0.18339068]
[1756788910521,0.71632819,110430.0,110420.0,0.18851068]
[1756788910667,0.71632819,110430.0,110420.0,0.1862466]
[1756788911125,0.56440819,110430.0,110420.0,0.1862466]
[1756788911275,0.56231819,110430.0,110420.0,0.1862466]
[1756788911476,0.56331819,110430.0,110420.0,0.1862466]
[1756788911712,0.56231819,110430.0,110420.0,0.1862466]
[1756788914565,0.56440819,110430.0,110420.0,0.1862466]
[1756788915560,0.84848059,110430.0,110420.0,0.1862466]
[1756788916364,0.38120799,110430.0,110420.0,0.1862466]
[1756788916692,0.35398399,110430.0,110420.0,0.1862466]
[1756788919674,0.29398399,110430.0,110420.0,0.1862466]
[1756788920715,0.29398399,110430.0,110420.0,0.27816259]
[1756788924236,0.00991159,110430.0,110420.0,0.27816259]
[1756788924416,0.2840724,110430.0,110420.0,0.27816259]
[1756788927339,0.29392399,110430.0,110420.0,0.27816259]
[1756788939578,0.00985159,110430.0,110420.0,0.27816259]
[1756788939788,0.2840724,110430.0,110420.0,0.27816259]
[1756788940637,0.2860924,110430.0,110420.0,0.27816259]
[1756788941359,0.00202,110430.0,110420.0,0.27816259]
[1756788941536,0.2860924,110430.0,110420.0,0.27816259]
[1756788942105,0.29597519,110430.0,110420.0,0.27816259]
[1756788943785,0.29395519,110430.0,110420.0,0.27816259]
[1756788948630,0.2840724,110430.0,110420.0,0.27816259]
[1756788948834,0.00967023,110440.0,110430.0,0.18109564]
[1756788949025,0.01169023,110440.0,110430.0,0.33277564]
[1756788949218,0.00202,110440.0,110430.0,0.33277564]
[1756788949419,0.00202,110440.0,110430.0,0.33473564]
[1756788949960,0.2860924,110440.0,110430.0,0.33473564]
[1756788950337,0.2860924,110440.0,110430.0,0.33772564]
[1756788950908,0.2860924,110440.0,110430.0,0.42964163]
[1756788951257,0.55931539,110460.0,110450.0,0.18106247]
[1756788951258,0.2840724,110460.0,110450.0,0.18106247]
[1756788951461,0.2860924,110460.0,110450.0,0.33500593]
[1756788951689,0.2860924,110460.0,110450.0,0.33274247]
[1756788952162,0.5701648,110460.0,110450.0,0.33274247]
[1756788952582,0.57063649,110460.0,110450.0,0.33274247]
[1756788952781,0.57063649,110460.0,110450.0,0.33474247]
[1756788953088,0.28656409,110460.0,110450.0,0.33474247]
[1756788953256,0.28656409,110460.0,110450.0,0.33574247]
[1756788954683,0.29652098,110460.0,110450.0,0.33574247]
[1756788954916,0.76319007,110460.0,110450.0,0.18406247]
[1756788955137,0.76003007,110460.0,110450.0,0.33800593]
[1756788955351,0.76003007,110460.0,110450.0,0.33574247]
[1756788956240,0.57700662,110460.0,110450.0,0.33574247]
[1756788957487,0.75910855,110460.0,110450.0,0.33574247]
[1756788957704,0.77328153,110460.0,110450.0,0.33574247]
[1756788958957,0.75910855,110460.0,110450.0,0.33574247]
[1756788960878,1.04543803,110460.0,110450.0,0.003]
[1756788961089,1.69434108,110460.0,110450.0,0.003]
[1756788961296,2.35950093,110460.0,110450.0,0.003]
[1756788961501,2.4981528,110460.0,110450.0,0.003]
[1756788961730,2.47025191,110460.0,110450.0,0.002]
[1756788962145,0.1811102,110430.0,110420.0,0.34182221]
[1756788962349,0.75074916,110430.0,110420.0,0.4337382]
[1756788962766,0.75074916,110430.0,110420.0,0.4367282]
[1756788963225,0.1831302,110430.0,110420.0,0.4386882]
[1756788963450,0.75074916,110430.0,110420.0,0.4386882]
[1756788963699,0.46490328,110440.0,110430.0,0.1811102]
[1756788963934,0.46528328,110440.0,110430.0,0.18337407]
[1756788964148,0.46528328,110440.0,110420.0,0.09191599]
[1756788964149,0.1811102,110430.0,110420.0,0.09191599]
[1756788964390,0.1811102,110430.0,110420.0,0.42767259]
[1756788964526,0.1811102,110430.0,110420.0,0.42963259]
[1756788964527,0.1815002,110430.0,110420.0,0.42963259]
[1756788964724,0.46530968,110430.0,110420.0,0.43163259]
[1756788964923,0.46530968,110430.0,110420.0,0.09391599]
[1756788965126,0.74911916,110430.0,110420.0,0.24655599]
[1756788965346,0.74911916,110430.0,110420.0,0.42768259]
[1756788965558,0.74911916,110430.0,110420.0,0.43270259]
[1756788967830,0.46530968,110430.0,110420.0,0.43270259]
[1756788969161,0.46530968,110430.0,110420.0,0.27604259]
[1756788969347,0.46530968,110430.0,110420.0,0.42768259]
[1756788969553,0.46530968,110430.0,110420.0,0.24655599]
[1756788969554,0.74911916,110430.0,110420.0,0.24655599]
[1756788969753,0.74911916,110430.0,110420.0,0.42768259]
[1756788970912,0.74911916,110430.0,110420.0,0.24655599]
[1756788971076,0.74911916,110430.0,110420.0,0.42768259]
[1756788972129,0.74911916,110430.0,110420.0,0.43270259]
[1756788972564,0.3327738,110440.0,110420.0,0.43270259]
[1756788972686,0.28380948,110430.0,110420.0,0.43270259]
[1756788974283,0.28380948,110430.0,110420.0,0.43170259]
[1756788975379,0.3327738,110440.0,110430.0,0.1811102]
[1756788975583,0.90039276,110440.0,110430.0,0.18839407]
[1756788975788,0.74871276,110440.0,110430.0,0.1861302]
[1756788976538,0.74909276,110440.0,110430.0,0.1861302]
[1756788977622,0.74909276,110440.0,110430.0,0.1821102]
[1756788977824,0.74909276,110440.0,110430.0,0.00326387]
[1756788978064,0.75122276,110440.0,110430.0,0.00326387]
[1756788978477,0.74909276,110440.0,110430.0,0.00326387]
[1756788978990,0.74909276,110440.0,110430.0,0.00623387]
[1756788980407,0.74909276,110440.0,110430.0,0.00828387]
[1756788980810,0.74909276,110440.0,110430.0,0.001]
[1756788981012,0.90077276,110440.0,110430.0,0.00326387]
[1756788981220,0.90077276,110440.0,110430.0,0.00602]
[1756788982032,0.90077276,110440.0,110430.0,0.00828387]
[1756788983802,0.90077276,110440.0,110430.0,0.00602]
[1756788984361,0.74871276,110440.0,110430.0,0.18939407]
[1756788984571,0.90039276,110440.0,110430.0,0.00602]
[1756788984927,0.90077276,110440.0,110430.0,0.00602]
[1756788988493,0.90077276,110440.0,110430.0,0.00828387]
[1756788989479,0.90077276,110440.0,110430.0,0.00623387]
[1756788989682,0.90077276,110440.0,110430.0,0.001]
[1756788991693,0.3331538,110440.0,110430.0,0.00305]
[1756788991907,0.90077276,110440.0,110430.0,0.001]
[1756788992189,0.90077276,110440.0,110430.0,0.00326387]
[1756788996949,0.90077276,110440.0,110430.0,0.00627387]
[1756788998013,0.90077276,110440.0,110430.0,0.00326387]
[1756789000349,0.90077276,110440.0,110430.0,0.001]
[1756789001142,0.90077276,110440.0,110430.0,0.00326387]
[1756789001909,0.90077276,110440.0,110430.0,0.18437407]
[1756789002079,0.90077276,110440.0,110430.0,0.18943407]
[1756789002277,0.92034522,110440.0,110430.0,0.1871702]
[1756789005818,0.92034522,110440.0,110430.0,0.00606]
[1756789006025,0.92034522,110440.0,110430.0,0.00832387]
[1756789006236,0.77079522,110440.0,110430.0,0.00326387]
[1756789006445,1.2062847,110440.0,110430.0,0.001]
[1756789008802,1.2041547,110440.0,110430.0,0.001]
[1756789008957,0.91996522,110440.0,110430.0,0.18943407]
[1756789009171,0.91996522,110440.0,110430.0,0.1871702]
[1756789009376,0.92034522,110440.0,110430.0,0.00606]
[1756789009581,0.92034522,110440.0,110430.0,0.00832387]
[1756789011798,0.76866522,110440.0,110430.0,0.00832387]
[1756789012001,0.92034522,110440.0,110430.0,0.00832387]
[1756789014860,0.76866522,110440.0,110430.0,0.00832387]
[1756789015064,0.92034522,110440.0,110430.0,0.00832387]
[1756789015811,0.76866522,110440.0,110430.0,0.00832387]
[1756789016020,0.92030522,110440.0,110430.0,0.00832387]
[1756789016231,0.92030522,110440.0,110430.0,0.18943407]
[1756789016439,0.92030522,110440.0,110430.0,0.1871702]
[1756789017232,0.92030522,110440.0,110430.0,0.00606]
[1756789017431,0.92030522,110440.0,110430.0,0.00832387]
[1756789017852,0.92030522,110440.0,110430.0,0.00326387]
[1756789018062,1.2041147,110440.0,110430.0,0.00326387]
[1756789018272,0.92030522,110440.0,110430.0,0.00326387]
[1756789018931,0.92030522,110440.0,110430.0,0.001]
[1756789019536,0.63663422,110440.0,110430.0,0.001]
[1756789021816,0.63663422,110440.0,110430.0,0.00832387]
[1756789022467,0.63663422,110440.0,110430.0,0.18943407]
[1756789022722,0.63663422,110440.0,110430.0,0.1871702]
[1756789023149,0.63663422,110440.0,110430.0,0.00606]
[1756789023377,0.63663422,110440.0,110430.0,0.00832387]
[1756789026797,0.63663422,110440.0,110430.0,0.18943407]
[1756789027016,0.63663422,110440.0,110430.0,0.1871702]
[1756789027490,0.61706176,110440.0,110430.0,0.1871702]
[1756789029396,0.1810938,110440.0,110430.0,0.1871702]
[1756789029620,0.02722,110450.0,110440.0,0.1810938]
[1756789029839,0.45564507,110450.0,110440.0,0.18840747]
[1756789030065,0.63672248,110450.0,110440.0,0.1861438]
[1756789030284,0.63710248,110450.0,110440.0,0.1861438]
[1756789030523,0.61752537,110450.0,110440.0,0.1861438]
[1756789032214,0.46540537,110450.0,110440.0,0.1861438]
[1756789032437,0.61748537,110450.0,110440.0,0.1861438]
[1756789032990,0.61748537,110450.0,110440.0,0.1871438]
[1756789033775,0.61748537,110450.0,110440.0,0.1891438]
[1756789036102,0.33315741,110450.0,110440.0,0.1891438]
[1756789036289,0.43602796,110450.0,110440.0,0.1891438]
[1756789037640,0.15208,110450.0,110440.0,0.1891438]
[1756789037891,0.43602796,110450.0,110440.0,0.1891438]
[1756789039350,0.61710537,110450.0,110440.0,0.1891438]
[1756789045301,0.46502537,110450.0,110440.0,0.1891438]
[1756789045454,0.61698537,110450.0,110440.0,0.1891438]
[1756789046069,0.61736537,110450.0,110440.0,0.1891438]
[1756789053185,0.62721091,110460.0,110450.0,0.18107741]
[1756789053414,0.64715169,110460.0,110440.0,0.27899979]
[1756789053609,0.49535169,110460.0,110440.0,0.27899979]
[1756789053752,0.15184,110450.0,110440.0,0.27899979]
[1756789054172,0.15184,110450.0,110440.0,0.28005979]
[1756789054377,0.43578796,110450.0,110440.0,0.27805979]
[1756789054976,0.43578796,110450.0,110440.0,0.27905979]
[1756789055180,0.43578796,110450.0,110440.0,0.28005979]
[1756789055591,0.28394796,110450.0,110440.0,0.28005979]
[1756789056483,0.28394796,110450.0,110440.0,0.27905979]
[1756789056852,0.28394796,110450.0,110440.0,0.28105979]
[1756789058098,0.46541537,110450.0,110440.0,0.09491599]
[1756789058330,0.46752537,110450.0,110440.0,0.09491599]
[1756789058539,0.46752537,110450.0,110440.0,0.003]
[1756789058741,0.46541537,110450.0,110440.0,0.003]
[1756789059672,1.13676571,110450.0,110440.0,0.003]
[1756789059886,1.23362571,110450.0,110440.0,0.003]
[1756789065031,1.38542571,110450.0,110440.0,0.003]
[1756789065580,1.29035205,110450.0,110440.0,0.003]
[1756789071446,1.29031546,110450.0,110440.0,0.003]
[1756789073786,1.28808546,110450.0,110440.0,0.003]
[1756789074374,1.29019546,110450.0,110440.0,0.003]
[1756789076219,1.92272744,110450.0,110440.0,0.003]
[1756789076437,1.94713752,110450.0,110440.0,0.003]
[1756789076654,1.97043574,110450.0,110440.0,0.003]
[1756789077183,1.97043574,110450.0,110410.0,0.07667631]
[1756789077184,0.1811266,110420.0,110410.0,0.07667631]
[1756789077408,0.61675456,110420.0,110410.0,0.07881631]
[1756789077856,0.64397956,110420.0,110410.0,0.07881631]
[1756789078057,0.3600316,110420.0,110410.0,0.07881631]
[1756789078437,0.360503,110420.0,110410.0,0.00527]
[1756789079027,0.360503,110420.0,110410.0,0.00627]
[1756789079825,0.360503,110420.0,110410.0,0.00827]
[1756789081432,0.360503,110420.0,110410.0,0.18941301]
[1756789082283,0.208823,110420.0,110410.0,0.18941301]
[1756789082508,0.0004714,110420.0,110410.0,0.281329]
[1756789083114,0.0004714,110420.0,110410.0,0.30226782]
[1756789085236,0.0004714,110420.0,110410.0,0.45394782]
[1756789088414,0.0004714,110420.0,110410.0,0.73796609]
[1756789088923,0.0004714,110420.0,110410.0,0.48116782]
[1756789089167,0.0004714,110420.0,110410.0,0.76518609]
[1756789090207,0.0004714,110420.0,110410.0,0.48116782]
[1756789090439,0.0004714,110420.0,110410.0,0.76518609]
[1756789095857,0.0004714,110420.0,110410.0,0.48116782]
[1756789096026,0.0004714,110420.0,110410.0,0.76518609]
[1756789102216,0.0004714,110420.0,110410.0,0.48116782]
[1756789102430,0.0004714,110420.0,110410.0,0.76518609]
[1756789104708,0.0004714,110420.0,110410.0,0.76218609]
[1756789104915,0.0004714,110420.0,110410.0,0.76618609]
[1756789106116,0.0004714,110420.0,110410.0,0.77118609]
[1756789113831,0.0004714,110420.0,110410.0,0.48716782]
[1756789114072,0.0004714,110420.0,110410.0,0.77118609]
[1756789121330,0.0004714,110420.0,110410.0,0.48716782]
[1756789121567,0.0004714,110420.0,110410.0,0.77118609]
[1756789121996,0.0004714,110420.0,110410.0,0.48716782]
[1756789122252,0.0004714,110420.0,110410.0,0.77118609]
[1756789123817,0.0004714,110420.0,110410.0,0.33548782]
[1756789124046,0.0004714,110420.0,110410.0,0.48189782]
[1756789124047,0.0008514,110420.0,110410.0,0.48189782]
[1756789124699,0.0008514,110420.0,110410.0,0.47789782]
[1756789124912,0.0008514,110420.0,110410.0,0.47289782]
[1756789125098,0.0008514,110420.0,110410.0,0.32121782]
[1756789125315,0.184108,110420.0,110410.0,0.300279]
[1756789125537,0.184108,110420.0,110410.0,0.454959]
[1756789125762,0.0029814,110420.0,110410.0,0.44867782]
[1756789126972,0.0008514,110420.0,110410.0,0.45267782]
[1756789127224,0.0008514,110420.0,110410.0,0.44567782]
[1756789127463,0.0008514,110420.0,110410.0,0.44767782]
[1756789127677,0.0008514,110420.0,110410.0,0.45067782]
[1756789129941,0.0008514,110420.0,110410.0,0.45375782]
[1756789130171,0.0008514,110420.0,110410.0,0.32929882]
[1756789130363,0.0008514,110420.0,110410.0,0.48097882]
[1756789131071,0.0004714,110420.0,110410.0,0.48097882]
[1756789131301,0.0004714,110420.0,110410.0,0.48310882]
[1756789131482,0.0008514,110420.0,110410.0,0.48310882]
[1756789133034,0.0004714,110420.0,110410.0,0.45588782]
[1756789133238,0.0004714,110420.0,110410.0,0.48310682]
[1756789133588,0.0004714,110420.0,110410.0,0.76712509]
[1756789134035,0.0004714,110420.0,110410.0,0.48310682]
[1756789134879,0.0004714,110420.0,110410.0,0.76712509]
[1756789135313,0.0004714,110420.0,110410.0,0.48310682]
[1756789135536,0.0004714,110420.0,110410.0,0.76712509]
[1756789142814,0.25973685,110470.0,110410.0,1.39114336]
[1756789143023,0.0001414,110470.0,110460.0,0.18106101]
[1756789143857,0.18118602,110470.0,110460.0,0.18106101]
[1756789144069,0.18418602,110470.0,110460.0,0.18106101]
[1756789144269,0.0071414,110470.0,110460.0,0.18106101]
[1756789144704,0.0001414,110470.0,110460.0,0.18106101]
[1756789144920,0.18218602,110470.0,110460.0,0.18106101]
[1756789145107,0.18318602,110470.0,110460.0,0.18106101]
[1756789145317,0.0021414,110470.0,110460.0,0.18332427]
[1756789145533,0.0021414,110470.0,110460.0,0.18106101]
[1756789145752,0.01156506,110470.0,110460.0,0.18106101]
[1756789146216,0.01156506,110470.0,110460.0,0.18631427]
[1756789146429,0.01156506,110470.0,110460.0,0.27823026]
[1756789146635,0.01156506,110470.0,110460.0,0.275967]
[1756789148036,0.01056506,110470.0,110460.0,0.275967]
[1756789148486,0.00956506,110470.0,110460.0,0.275967]
[1756789151771,0.00956506,110470.0,110460.0,0.277987]
[1756789153836,0.0001414,110470.0,110460.0,0.29892582]
[1756789154258,0.0001414,110470.0,110460.0,0.32613282]
[1756789154465,0.0001414,110470.0,110460.0,0.32713282]
[1756789154674,0.0001414,110470.0,110460.0,0.32813282]
[1756789154874,0.0001414,110470.0,110460.0,0.61190239]
[1756789155084,0.0001414,110470.0,110460.0,0.61090239]
[1756789155298,0.0001414,110470.0,110460.0,0.67954239]
[1756789155493,0.0001414,110470.0,110460.0,0.68454239]
[1756789155895,0.0001414,110470.0,110460.0,1.02454239]
[1756789157122,0.05984679,110500.0,110490.0,0.18101185]
[1756789157314,0.05984679,110500.0,110490.0,0.18327449]
[1756789157823,0.05984679,110500.0,110490.0,0.18626449]
[1756789158025,0.06946202,110500.0,110490.0,0.18828449]
[1756789158183,0.06946202,110500.0,110490.0,0.18602185]
[1756789158395,0.06946202,110500.0,110490.0,0.18400185]
[1756789158737,0.07046202,110500.0,110490.0,0.18626449]
[1756789159308,0.06141225,110500.0,110490.0,0.18828449]
[1756789159509,0.06141225,110500.0,110490.0,0.18602185]
[1756789159918,0.06141225,110500.0,110490.0,0.18101185]
[1756789160153,0.06141225,110500.0,110490.0,0.18400185]
[1756789160353,0.1916107,110500.0,110490.0,0.18327449]
[1756789160623,0.1906107,110500.0,110490.0,0.18327449]
[1756789160824,0.1906107,110500.0,110490.0,0.18626449]
[1756789161030,0.1906107,110500.0,110490.0,0.18828449]
[1756789161243,0.00961523,110500.0,110490.0,0.18602185]
[1756789161654,0.18099547,110500.0,110490.0,0.18602185]
[1756789161869,0.18099547,110500.0,110490.0,0.18400185]
[1756789162080,0.19035376,110500.0,110490.0,0.18400185]
[1756789162471,0.19035376,110500.0,110490.0,0.18626449]
[1756789162703,0.19035376,110500.0,110490.0,0.18400185]
[1756789163186,0.19035376,110500.0,110490.0,0.18626449]
[1756789163725,0.19035376,110500.0,110490.0,0.18327449]
[1756789164116,0.19035376,110500.0,110490.0,0.18828449]
[1756789164316,0.19035376,110500.0,110490.0,0.18602185]
[1756789164980,0.00935829,110500.0,110490.0,0.18602185]
[1756789165231,0.18099547,110500.0,110490.0,0.18602185]
[1756789165639,0.34229879,110510.0,110490.0,0.18602185]
[1756789165909,0.34244019,110510.0,110490.0,0.18602185]
[1756789166117,0.18099547,110500.0,110490.0,0.18602185]
[1756789166318,0.18099547,110500.0,110490.0,0.18802185]
[1756789166953,0.18099547,110500.0,110490.0,0.27893784]
[1756789168183,0.34252019,110510.0,110490.0,0.27793784]
[1756789168376,0.00918509,110500.0,110490.0,0.27793784]
[1756789168513,0.19048019,110510.0,110490.0,0.27793784]
[1756789168715,0.18099547,110500.0,110490.0,0.27793784]
[1756789169176,0.18099547,110500.0,110490.0,0.27993784]
[1756789169378,0.18099547,110500.0,110490.0,0.27893784]
[1756789169805,0.33303547,110500.0,110490.0,0.09590599]
[1756789170005,0.33303547,110500.0,110490.0,0.27691784]
[1756789170891,0.33303547,110500.0,110490.0,0.09291599]
[1756789171574,0.34246068,110500.0,110490.0,0.09391599]
[1756789171722,0.34246068,110500.0,110490.0,0.27392784]
[1756789172112,0.34246068,110500.0,110490.0,0.27691784]
[1756789172315,0.34246068,110500.0,110490.0,0.27591784]
[1756789172526,0.34246068,110500.0,110490.0,0.09490599]
[1756789172734,0.34246068,110500.0,110490.0,0.27591784]
[1756789172936,0.34242068,110500.0,110490.0,0.27793784]
[1756789173420,0.34242068,110500.0,110490.0,0.27292784]
[1756789174674,0.34242068,110500.0,110490.0,0.09191599]
[1756789177039,0.34242068,110500.0,110490.0,0.09509599]
[1756789177895,0.34242068,110500.0,110490.0,0.09191599]
[1756789178507,0.18101185,110490.0,110480.0,0.21140331]
[1756789178733,0.18101185,110490.0,110480.0,0.3053593]
[1756789179825,0.18101185,110490.0,110480.0,0.3063593]
[1756789181112,0.18101185,110490.0,110480.0,0.3073593]
[1756789182904,0.33281185,110490.0,110480.0,0.3073593]
[1756789183881,0.19042068,110500.0,110480.0,0.3073593]
[1756789184118,0.35070567,110500.0,110490.0,0.18419185]
[1756789184330,0.35070567,110500.0,110490.0,0.18623185]
[1756789184551,0.19042068,110500.0,110490.0,0.18623185]
[1756789184772,0.34278068,110500.0,110490.0,0.18623185]
[1756789185215,0.35127372,110500.0,110490.0,0.18623185]
[1756789185485,0.37084158,110500.0,110490.0,0.18623185]
[1756789186490,0.36234854,110500.0,110490.0,0.18623185]
[1756789187522,0.34278068,110500.0,110490.0,0.18623185]
[1756789188596,0.34278068,110500.0,110490.0,0.00522]
[1756789189210,0.34270068,110500.0,110490.0,0.18623185]
[1756789190241,0.00346147,110500.0,110490.0,0.18623185]
[1756789190450,0.18447188,110500.0,110490.0,0.18623185]
[1756789190667,0.33329041,110500.0,110490.0,0.18623185]
[1756789191349,0.34239521,110500.0,110490.0,0.18623185]
[1756789193764,0.34239521,110500.0,110490.0,0.00318]
[1756789194507,0.34239521,110500.0,110490.0,0.18419185]
[1756789194722,0.34239521,110500.0,110490.0,0.18623185]
[1756789196239,0.34239521,110500.0,110490.0,0.18419185]
[1756789196457,0.34239521,110500.0,110490.0,0.00318]
[1756789196692,0.18101185,110490.0,110480.0,0.11912099]
[1756789196904,0.18101185,110490.0,110480.0,0.27294423]
[1756789197115,0.18101185,110490.0,110480.0,0.09509599]
[1756789197330,0.18101185,110490.0,110480.0,0.27816423]
[1756789200733,0.1522,110490.0,110480.0,0.27816423]
[1756789200947,0.19010027,110500.0,110490.0,0.18101185]
[1756789201163,0.34234027,110500.0,110490.0,0.18623185]
[1756789202031,0.19010027,110500.0,110490.0,0.18623185]
[1756789202240,0.34234027,110500.0,110490.0,0.18623185]
[1756789204590,0.0091048,110500.0,110490.0,0.27814784]
[1756789204800,0.15216,110500.0,110490.0,0.27814784]
[1756789205003,0.1525014,110510.0,110500.0,0.18099547]
[1756789205205,0.35303279,110510.0,110500.0,0.18842791]
[1756789205418,0.33348049,110510.0,110500.0,0.18616547]
[1756789205772,0.34273549,110510.0,110500.0,0.18616547]
[1756789207550,0.1617564,110510.0,110500.0,0.18616547]
[1756789207993,0.00907016,110510.0,110500.0,0.27808146]
[1756789208209,0.16131016,110510.0,110500.0,0.27808146]
[1756789208424,0.15224,110510.0,110500.0,0.27808146]
[1756789210134,0.16162641,110510.0,110500.0,0.27808146]
[1756789210976,0.3426055,110510.0,110500.0,0.09507599]
[1756789211190,0.3426055,110510.0,110500.0,0.09191599]
[1756789211398,0.34244839,110510.0,110500.0,0.09191599]
[1756789211609,0.34218583,110510.0,110500.0,0.09191599]
[1756789211819,0.34218583,110510.0,110500.0,0.09507599]
[1756789212041,0.34218583,110510.0,110500.0,0.27607146]
[1756789212446,0.34218583,110510.0,110500.0,0.27808146]
[1756789214128,0.34199708,110510.0,110500.0,0.27808146]
[1756789215156,0.18099547,110500.0,110490.0,0.027202]
[1756789215373,0.18099547,110500.0,110490.0,0.09191599]
[1756789215578,0.18099547,110500.0,110490.0,0.09507599]
[1756789216229,0.18099547,110500.0,110490.0,0.09607599]
[1756789216784,0.18099547,110500.0,110490.0,0.27608784]
[1756789216988,0.18099547,110500.0,110490.0,0.09507599]
[1756789217236,0.18094381,110500.0,110490.0,0.09708599]
[1756789217401,0.18086579,110500.0,110490.0,0.09708599]
[1756789218116,0.18086579,110500.0,110490.0,0.27809784]
[1756789219128,0.18086579,110500.0,110490.0,0.09708599]
[1756789219369,0.18081941,110500.0,110490.0,0.09708599]
[1756789219571,0.18068867,110500.0,110490.0,0.09708599]
[1756789220029,0.18068867,110500.0,110490.0,0.27809784]
[1756789222537,0.21772461,110510.0,110500.0,0.18099547]
[1756789222758,0.36988461,110510.0,110500.0,0.18300547]
[1756789222973,0.36988461,110510.0,110500.0,0.18616547]
[1756789223210,0.36925297,110510.0,110500.0,0.18616547]
[1756789224103,0.36872678,110510.0,110500.0,0.18616547]
[1756789226709,0.21656678,110510.0,110500.0,0.27808146]
[1756789226928,0.16054569,110510.0,110500.0,0.27808146]
[1756789227577,0.34152478,110510.0,110500.0,0.27808146]
[1756789227993,0.16054569,110510.0,110500.0,0.27808146]
[1756789228847,0.34152478,110510.0,110500.0,0.27808146]
[1756789229263,0.34099864,110510.0,110500.0,0.27808146]
[1756789229706,0.16001955,110510.0,110500.0,0.27808146]
[1756789230125,0.15997955,110510.0,110500.0,0.27808146]
[1756789230873,0.00759701,110510.0,110500.0,0.27808146]
[1756789231090,0.00741461,110510.0,110500.0,0.43016146]
[1756789231505,0.33304437,110520.0,110510.0,0.18097909]
[1756789231712,0.33309148,110520.0,110510.0,0.18097909]
[1756789231914,0.33309148,110520.0,110510.0,0.18614909]
[1756789232321,0.34251506,110520.0,110510.0,0.18614909]
[1756789232532,0.00947069,110520.0,110510.0,0.18614909]
[1756789232732,0.34251341,110520.0,110510.0,0.27806508]
[1756789234319,0.16155069,110520.0,110510.0,0.27806508]
[1756789234726,0.34251341,110520.0,110510.0,0.27806508]
[1756789234975,0.34192507,110520.0,110510.0,0.27806508]
[1756789235396,0.34139893,110520.0,110510.0,0.27806508]
[1756789235602,0.34139893,110520.0,110510.0,0.09708599]
[1756789235959,0.34139893,110520.0,110510.0,0.09507599]
[1756789236208,0.18082199,110510.0,110500.0,0.33619547]
[1756789236415,0.18082199,110510.0,110500.0,0.43025146]
[1756789237033,0.18082199,110510.0,110500.0,0.003]
[1756789237259,0.18099547,110500.0,110480.0,0.34527258]
[1756789237484,0.33323547,110500.0,110490.0,0.09191599]
[1756789237698,0.33323547,110500.0,110490.0,0.09491599]
[1756789238124,0.18101185,110490.0,110480.0,0.21123052]
[1756789238339,0.18101185,110490.0,110480.0,0.09491599]
[1756789238992,0.18101185,110490.0,110480.0,0.27594423]
[1756789239415,0.18101185,110490.0,110480.0,0.27908423]
[1756789239838,0.18101185,110490.0,110480.0,0.27808423]
[1756789240480,0.18101185,110490.0,110480.0,0.27908423]
[1756789240922,0.18101185,110490.0,110480.0,0.27808423]
[1756789241167,0.18096019,110490.0,110480.0,0.27808423]
[1756789241656,0.1806976,110490.0,110480.0,0.27808423]
[1756789243992,0.1806976,110490.0,110480.0,0.09705599]
[1756789244485,0.1806976,110490.0,110480.0,0.27808423]
[1756789245287,0.1806976,110490.0,110480.0,0.09705599]
[1756789246030,0.1806976,110490.0,110480.0,0.27808423]
[1756789246457,0.18017136,110490.0,110480.0,0.27808423]
[1756789246879,0.17990877,110490.0,110480.0,0.27808423]